lending/lending_fUSD_20250808
["ID","MTS","AMOUNT","RATE_DAILY","PERIOD"]
[378038882,1754675432778,-400.0,0.0001839,2]
[378038883,1754675432788,-400.0,0.0001839,2]
[378038884,1754675432798,-400.0,0.0001839,2]
[378038885,1754675432808,-400.0,0.0001839,2]
[378038886,1754675432818,-400.0,0.0001839,2]
[378038887,1754675432828,-400.0,0.0001839,2]
[378038888,1754675432838,-400.0,0.0001839,2]
[378038889,1754675432847,-400.0,0.0001839,2]
[378038890,1754675432857,-400.0,0.0001839,2]
[378038891,1754675432867,-400.0,0.0001839,2]
[378038892,1754675432876,-400.0,0.0001839,2]
[378038893,1754675432885,-400.0,0.0001839,2]
[378038894,1754675432894,-400.0,0.0001839,2]
[378038895,1754675432904,-400.0,0.0001839,2]
[378038896,1754675432913,-400.0,0.0001839,2]
[378038897,1754675432922,-400.0,0.0001839,2]
[378038898,1754675432931,-400.0,0.0001839,2]
[378038899,1754675432941,-152.36122443,0.0001839,2]
[378038900,1754675432950,-400.0,0.0001839,2]
[378038901,1754675432959,-500.0,0.0001839,2]
[378038902,1754675432969,-400.0,0.0001839,2]
[378038903,1754675432978,-400.0,0.0001839,2]
[378038904,1754675432987,-400.0,0.0001839,2]
[378038905,1754675432997,-400.0,0.0001839,2]
[378038906,1754675433007,-407.50562857,0.0001839,2]
[378038907,1754675433017,-400.0,0.0001839,2]
[378038908,1754675433026,-500.0,0.0001839,2]
[378038909,1754675433035,-518.32,0.0001839,2]
[378038910,1754675433046,-400.0,0.0001839,2]
[378038911,1754675433056,-400.0,0.0001839,2]
[378038912,1754675433066,-400.0,0.0001839,2]
[378038913,1754675433076,-400.0,0.0001839,2]
[378038914,1754675433086,-400.0,0.0001839,2]
[378038915,1754675433096,-400.0,0.0001839,2]
[378038916,1754675433105,-400.0,0.0001839,2]
[378038917,1754675433116,-1509.07,0.0001839,2]
[378038918,1754675433126,-1285.4,0.0001839,2]
[378038919,1754675433135,-400.0,0.0001839,2]
[378038920,1754675433145,-400.0,0.0001839,2]
[378038921,1754675433155,-400.0,0.0001839,2]
[378038922,1754675433165,-400.0,0.0001839,2]
[378038923,1754675433175,-400.0,0.0001839,2]
[378038924,1754675433184,-400.0,0.0001839,2]
[378038925,1754675433194,-400.0,0.0001839,2]
[378038926,1754675433203,-400.0,0.0001839,2]
[378038927,1754675433213,-2782.77,0.0001839,2]
[378038928,1754675433223,-471.92,0.0001839,2]
[378038929,1754675433232,-400.0,0.0001839,2]
[378038930,1754675433242,-400.0,0.0001839,2]
[378038931,1754675433252,-286.68271169,0.0001839,2]
[378038932,1754675433261,-709.42,0.0001839,2]
[378038933,1754675433271,-400.0,0.00018391,2]
[378038934,1754675433280,-598.29,0.00018391,2]
[378038935,1754675433289,-151.0,0.00018392,2]
[378038936,1754675433299,-151.0,0.00018392,2]
[378038937,1754675433309,-151.0,0.00018392,2]
[378038938,1754675433319,-151.0,0.00018556,2]
[378038939,1754675433330,-151.0,0.00018556,2]
[378038940,1754675433340,-4111.1889383,0.00018614,2]
[378038941,1754675433349,-178.554854,0.0001866,2]
[378038942,1754675433359,-178.65,0.00018664,2]
[378038943,1754675433370,-391.62,0.00018664,2]
[378038944,1754675433380,-400.0,0.00018664,2]
[378038945,1754675433389,-188.71,0.00018664,2]
[378038946,1754675433399,-400.0,0.00018664,2]
[378038947,1754675433408,-228.23577533,0.00018664,2]
[378038948,1754675433418,-999.3,0.00018664,2]
[378038949,1754675433427,-405.36,0.00018664,2]
[378038950,1754675433439,-411.2,0.00018664,2]
[378038951,1754675433448,-412.92,0.00018664,2]
[378038952,1754675433458,-415.74,0.00018664,2]
[378038953,1754675433467,-211.75,0.00018664,2]
[378038954,1754675433478,-403.35,0.00018664,2]
[378038955,1754675433488,-400.0,0.00018664,2]
[378038956,1754675433498,-400.0,0.00018664,2]
[378038957,1754675433508,-400.0,0.00018664,2]
[378038958,1754675433518,-400.0,0.00018664,2]
[378038959,1754675433528,-400.0,0.00018664,2]
[378038960,1754675433538,-400.0,0.00018664,2]
[378038961,1754675433548,-468.15,0.00018664,2]
[378038962,1754675433558,-400.0,0.00018664,2]
[378038963,1754675433568,-400.0,0.00018664,2]
[378038964,1754675433578,-400.0,0.00018664,2]
[378038965,1754675433588,-186.91,0.00018664,2]
[378038966,1754675433597,-400.0,0.00018664,2]
[378038967,1754675433608,-421.85,0.00018664,2]
[378038968,1754675433618,-300.0,0.00018664,2]
[378038969,1754675433628,-337.50192561,0.00018664,2]
[378038970,1754675433643,-62.49807439,0.00018664,2]
[378038971,1754675433653,-310.56247562,0.00018664,2]
[378038972,1754675433703,-89.43752438,0.00018664,2]
[378038973,1754675433712,-400.0,0.00018664,2]
[378038974,1754675433722,-400.0,0.00018664,2]
[378038975,1754675433731,-400.0,0.00018664,2]
[378038976,1754675433741,-400.0,0.00018664,2]
[378038977,1754675433750,-400.0,0.00018664,2]
[378038978,1754675433759,-297.55659178,0.00018664,2]
[378038979,1754675433785,-292.98340822,0.00018664,2]
[378038980,1754675433795,-400.0,0.00018664,2]
[378038981,1754675433805,-400.0,0.00018664,2]
[378038982,1754675433815,-400.0,0.00018664,2]
[378038983,1754675433825,-400.0,0.00018664,2]
[378038984,1754675433834,-400.0,0.00018664,2]
[378038985,1754675433844,-400.0,0.00018664,2]
[378038986,1754675433854,-424.0,0.00018664,2]
[378038987,1754675433863,-400.0,0.00018664,2]
[378038988,1754675433873,-400.0,0.00018664,2]
[378038989,1754675433883,-400.0,0.00018664,2]
[378038990,1754675433892,-400.0,0.00018664,2]
[378038991,1754675433902,-400.0,0.00018664,2]
[378038992,1754675433912,-400.0,0.00018664,2]
[378038993,1754675433922,-400.0,0.00018664,2]
[378038994,1754675433932,-400.0,0.00018664,2]
[378038995,1754675433942,-400.0,0.00018664,2]
[378038996,1754675433951,-400.0,0.00018664,2]
[378038997,1754675433961,-400.0,0.00018664,2]
[378038998,1754675433971,-400.0,0.00018664,2]
[378038999,1754675433980,-400.0,0.00018664,2]
[378039000,1754675433990,-400.0,0.00018664,2]
[378039001,1754675434000,-400.0,0.00018664,2]
[378039002,1754675434010,-387.40786978,0.00018664,2]
[378039003,1754675434020,-400.0,0.00018664,2]
[378039004,1754675434030,-1509.07,0.00018664,2]
[378039005,1754675434039,-1285.4,0.00018664,2]
[378039006,1754675434049,-400.0,0.00018664,2]
[378039007,1754675434058,-400.0,0.00018664,2]
[378039008,1754675434068,-400.0,0.00018664,2]
[378039009,1754675434077,-400.0,0.00018664,2]
[378039010,1754675434087,-400.0,0.00018664,2]
[378039011,1754675434097,-400.0,0.00018664,2]
[378039012,1754675434106,-400.0,0.00018664,2]
[378039013,1754675434118,-400.0,0.00018664,2]
[378039014,1754675434128,-2782.77,0.00018664,2]
[378039015,1754675434139,-400.0,0.00018664,2]
[378039016,1754675434148,-400.0,0.00018664,2]
[378039017,1754675434158,-709.42,0.00018664,2]
[378039018,1754675434168,-537.28,0.00018714,2]
[378039019,1754675434177,-254.40791813,0.00018714,2]
[378039020,1754675434191,-145.59208187,0.00018714,2]
[378039021,1754675434201,-437.71,0.00018714,2]
[378039022,1754675434211,-400.0,0.00018714,2]
[378039023,1754675434220,-400.0,0.00018714,2]
[378039024,1754675434229,-400.0,0.00018714,2]
[378039025,1754675434238,-400.0,0.00018714,2]
[378039026,1754675434247,-379.74446553,0.00018714,2]
[378039027,1754675434257,-400.0,0.00018714,2]
[378039028,1754675434266,-400.0,0.00018714,2]
[378039029,1754675434276,-506.54,0.00018714,2]
[378039030,1754675434285,-400.0,0.00018714,2]
[378039031,1754675434294,-400.0,0.00018714,2]
[378039032,1754675434303,-400.0,0.00018714,2]
[378039033,1754675434313,-400.0,0.00018714,2]
[378039034,1754675434322,-400.0,0.00018714,2]
[378039035,1754675434332,-400.0,0.00018714,2]
[378039036,1754675434341,-477.71,0.00018714,2]
[378039037,1754675434351,-400.0,0.00018714,2]
[378039038,1754675434360,-400.0,0.00018714,2]
[378039039,1754675434371,-400.0,0.00018714,2]
[378039040,1754675434381,-400.0,0.00018714,2]
[378039041,1754675434391,-400.0,0.00018714,2]
[378039042,1754675434400,-400.0,0.00018714,2]
[378039043,1754675434409,-424.84,0.00018714,2]
[378039044,1754675434419,-400.0,0.00018714,2]
[378039045,1754675434431,-400.0,0.00018714,2]
[378039046,1754675434441,-400.0,0.00018714,2]
[378039047,1754675434452,-492.02,0.00018714,2]
[378039048,1754675434471,-400.0,0.00018714,2]
[378039049,1754675434492,-400.0,0.00018714,2]
[378039050,1754675434503,-400.0,0.00018714,2]
[378039051,1754675434515,-500.67,0.00018714,2]
[378039052,1754675434526,-400.0,0.00018714,2]
[378039053,1754675434537,-400.0,0.00018714,2]
[378039054,1754675434548,-400.0,0.00018714,2]
[378039055,1754675434559,-449.21,0.00018714,2]
[378039056,1754675434569,-357.64747752,0.00018714,2]
[378039057,1754675434580,-452.57,0.00018714,2]
[378039058,1754675434590,-400.0,0.00018714,2]
[378039059,1754675434600,-400.0,0.00018714,2]
[378039060,1754675434610,-400.0,0.00018714,2]
[378039061,1754675434622,-400.0,0.00018714,2]
[378039062,1754675434631,-400.0,0.00018714,2]
[378039063,1754675434640,-400.0,0.00018714,2]
[378039064,1754675434650,-478.61,0.00018714,2]
[378039065,1754675434659,-450.28,0.00018714,2]
[378039066,1754675434668,-400.0,0.00018714,2]
[378039067,1754675434678,-358.89381241,0.00018714,2]
[378039068,1754675434687,-400.0,0.00018714,2]
[378039069,1754675434696,-434.5,0.00018714,2]
[378039070,1754675434706,-400.0,0.00018714,2]
[378039071,1754675434716,-400.0,0.00018714,2]
[378039072,1754675434725,-400.0,0.00018714,2]
[378039073,1754675434734,-400.0,0.00018714,2]
[378039074,1754675434744,-400.0,0.00018714,2]
[378039075,1754675434753,-400.0,0.00018714,2]
[378039076,1754675434762,-400.0,0.00018714,2]
[378039077,1754675434772,-400.0,0.00018714,2]
[378039078,1754675434781,-400.0,0.00018714,2]
[378039079,1754675434790,-400.0,0.00018714,2]
[378039080,1754675434800,-400.0,0.00018714,2]
[378039081,1754675434809,-400.0,0.00018714,2]
[378039082,1754675434819,-400.81155394,0.00018714,2]
[378039083,1754675434828,-1200.74,0.00018714,2]
[378039084,1754675434838,-400.0,0.00018714,2]
[378039085,1754675434847,-400.0,0.00018714,2]
[378039086,1754675434856,-400.0,0.00018714,2]
[378039087,1754675434868,-133.01745654,0.00018714,2]
[378039088,1754675434880,-266.98254346,0.00018714,2]
[378039089,1754675434890,-400.0,0.00018714,2]
[378039090,1754675434899,-402.29337468,0.00018714,2]
[378039091,1754675434909,-400.0,0.00018714,2]
[378039092,1754675434919,-400.0,0.00018714,2]
[378039093,1754675434928,-529.09,0.00018714,2]
[378039094,1754675434937,-400.0,0.00018714,2]
[378039095,1754675434946,-401.2595348,0.00018714,2]
[378039096,1754675434956,-400.0,0.00018714,2]
[378039097,1754675434965,-1059.86,0.00018714,2]
[378039098,1754675434975,-400.0,0.00018714,2]
[378039099,1754675434985,-400.0,0.00018714,2]
[378039100,1754675434995,-400.0,0.00018714,2]
[378039101,1754675435005,-400.0,0.00018714,2]
[378039102,1754675435015,-400.0,0.00018714,2]
[378039103,1754675435024,-412.62336889,0.00018714,2]
[378039104,1754675435034,-400.0,0.00018714,2]
[378039105,1754675435043,-400.0,0.00018714,2]
[378039106,1754675435055,-455.45,0.00018714,2]
[378039107,1754675435068,-400.0,0.00018714,2]
[378039108,1754675435078,-400.0,0.00018714,2]
[378039109,1754675435087,-400.0,0.00018714,2]
[378039110,1754675435097,-400.0,0.00018714,2]
[378039111,1754675435106,-400.0,0.00018714,2]
[378039112,1754675435117,-400.0,0.00018714,2]
[378039113,1754675435126,-1430.07,0.00018714,2]
[378039114,1754675435136,-400.0,0.00018714,2]
[378039115,1754675435145,-400.0,0.00018714,2]
[378039116,1754675435156,-400.0,0.00018714,2]
[378039117,1754675435180,-443.51,0.00018714,2]
[378039118,1754675435196,-517.99,0.00018714,2]
[378039119,1754675435206,-400.0,0.00018714,2]
[378039120,1754675435216,-400.0,0.00018714,2]
[378039121,1754675435225,-1392.24,0.00018714,2]
[378039122,1754675435234,-400.0,0.00018714,2]
[378039123,1754675435244,-500.6288658,0.00018831,2]
[378039124,1754675435252,-5800.0,0.00018832,2]
[378039125,1754675435262,-1724.18463584,0.00018841,2]
[378039126,1754675435402,-4075.81536416,0.00018841,2]
[378039127,1754675435412,-5800.0,0.00018849,2]
[378039128,1754675435421,-5800.0,0.00018858,2]
[378039129,1754675435432,-5800.0,0.00018866,2]
[378039130,1754675435442,-5800.0,0.00018875,2]
[378039131,1754675435451,-5800.0,0.00018883,2]
[378039132,1754675435459,-170.34491597,0.00018888,2]
[378039133,1754675435470,-5800.0,0.00018892,2]
[378039134,1754675435479,-5800.0,0.000189,2]
[378039135,1754675435489,-150.0,0.000189,2]
[378039136,1754675435499,-158.52,0.00018905,2]
[378039137,1754675435509,-287.69,0.00018927,2]
[378039138,1754675435518,-400.0,0.00018936,2]
[378039139,1754675435527,-400.0,0.00018936,2]
[378039140,1754675435537,-400.0,0.00018936,2]
[378039141,1754675435546,-383.39059491,0.00018936,2]
[378039142,1754675435555,-400.0,0.00018936,2]
[378039143,1754675435564,-400.0,0.00018936,2]
[378039144,1754675435574,-400.0,0.00018936,2]
[378039145,1754675435583,-400.0,0.00018936,2]
[378039146,1754675435592,-903.85,0.00018936,2]
[378039147,1754675435601,-400.0,0.00018937,2]
[378039148,1754675435610,-400.0,0.00018937,2]
[378039149,1754675435621,-400.0,0.00018937,2]
[378039150,1754675435630,-400.0,0.00018937,2]
[378039151,1754675435640,-400.0,0.00018937,2]
[378039152,1754675435649,-544.7,0.00018937,2]
[378039153,1754675435658,-808.39,0.00018937,2]
[378039154,1754675435667,-400.0,0.00018937,2]
[378039155,1754675435676,-400.0,0.00018937,2]
[378039156,1754675435685,-400.0,0.00018937,2]
[378039157,1754675435694,-400.0,0.00018937,2]
[378039158,1754675435704,-480.7,0.00018937,2]
[378039159,1754675435713,-400.0,0.00018937,2]
[378039160,1754675435722,-400.0,0.00018937,2]
[378039161,1754675435731,-400.0,0.00018937,2]
[378039162,1754675435741,-401.64130579,0.00018937,2]
[378039163,1754675435751,-435.51,0.00018937,2]
[378039164,1754675435759,-400.0,0.00018937,2]
[378039165,1754675435767,-400.0,0.00018937,2]
[378039166,1754675435777,-400.0,0.00018937,2]
[378039167,1754675435787,-400.0,0.00018937,2]
[378039168,1754675435796,-400.0,0.00018937,2]
[378039169,1754675435805,-400.0,0.00018937,2]
[378039170,1754675435815,-400.0,0.00018937,2]
[378039171,1754675435824,-400.0,0.00018937,2]
[378039172,1754675435833,-400.0,0.00018937,2]
[378039173,1754675435841,-400.0,0.00018937,2]
[378039174,1754675435850,-400.0,0.00018937,2]
[378039175,1754675435861,-400.0,0.00018937,2]
[378039176,1754675435871,-419.32,0.00018937,2]
[378039177,1754675435880,-400.0,0.00018937,2]
[378039178,1754675435890,-400.0,0.00018937,2]
[378039179,1754675435899,-400.0,0.00018937,2]
[378039180,1754675435909,-400.0,0.00018937,2]
[378039181,1754675435918,-400.0,0.00018937,2]
[378039182,1754675435928,-500.0,0.00018937,2]
[378039183,1754675435937,-400.0,0.00018937,2]
[378039184,1754675436073,-400.0,0.00018937,2]
[378039185,1754675436085,-400.0,0.00018937,2]
[378039186,1754675436095,-400.0,0.00018937,2]
[378039187,1754675436104,-752.1,0.00018937,2]
[378039188,1754675436115,-400.0,0.00018937,2]
[378039189,1754675436124,-400.0,0.00018937,2]
[378039190,1754675436134,-541.85168711,0.00018937,2]
[378039191,1754675436143,-400.0,0.00018937,2]
[378039192,1754675436153,-400.0,0.00018937,2]
[378039193,1754675436162,-400.0,0.00018937,2]
[378039194,1754675436171,-400.0,0.00018937,2]
[378039195,1754675436181,-400.0,0.00018937,2]
[378039196,1754675436190,-400.0,0.00018937,2]
[378039197,1754675436199,-400.0,0.00018937,2]
[378039198,1754675436208,-158.93256342,0.00018937,2]
[378039199,1754675436217,-1333.48,0.00018937,2]
[378039200,1754675436226,-394.63536898,0.00018937,2]
[378039201,1754675436236,-400.0,0.00018937,2]
[378039202,1754675436245,-400.0,0.00018937,2]
[378039203,1754675436255,-214.09,0.00018937,2]
[378039204,1754675436268,-204.03,0.00018937,2]
[378039205,1754675436278,-499.48,0.00018937,2]
[378039206,1754675436287,-400.0,0.00018937,2]
[378039207,1754675436296,-400.0,0.00018937,2]
[378039208,1754675436306,-400.0,0.00018937,2]
[378039209,1754675436315,-462.3,0.00018937,2]
[378039210,1754675436324,-400.0,0.00018937,2]
[378039211,1754675436335,-400.0,0.00018937,2]
[378039212,1754675436345,-483.76,0.00018937,2]
[378039213,1754675436355,-400.0,0.00018937,2]
[378039214,1754675436365,-400.0,0.00018937,2]
[378039215,1754675436374,-400.0,0.00018937,2]
[378039216,1754675436383,-400.0,0.00018937,2]
[378039217,1754675436393,-400.0,0.00018937,2]
[378039218,1754675436402,-400.0,0.00018937,2]
[378039219,1754675436411,-504.74,0.00018937,2]
[378039220,1754675436421,-400.0,0.00018937,2]
[378039221,1754675436434,-400.0,0.00018937,2]
[378039222,1754675436444,-400.0,0.00018937,2]
[378039223,1754675436454,-400.0,0.00018937,2]
[378039224,1754675436463,-400.0,0.00018937,2]
[378039225,1754675436474,-400.0,0.00018937,2]
[378039226,1754675436485,-400.0,0.00018937,2]
[378039227,1754675436494,-400.0,0.00018937,2]
[378039228,1754675436505,-400.0,0.00018937,2]
[378039229,1754675436514,-400.0,0.00018937,2]
[378039230,1754675436524,-400.0,0.00018937,2]
[378039231,1754675436534,-400.0,0.00018937,2]
[378039232,1754675436543,-400.0,0.00018937,2]
[378039233,1754675436552,-400.0,0.00018937,2]
[378039234,1754675436561,-849.68,0.00018937,2]
[378039235,1754675436571,-400.0,0.00018937,2]
[378039236,1754675436580,-400.0,0.00018937,2]
[378039237,1754675436590,-400.0,0.00018937,2]
[378039238,1754675436600,-400.0,0.00018937,2]
[378039239,1754675436609,-3076.59,0.00018937,2]
[378039240,1754675436619,-400.0,0.00018937,2]
[378039241,1754675436628,-3518.48,0.00018937,2]
[378039242,1754675436637,-400.0,0.00018937,2]
[378039243,1754675436646,-160.22,0.00018937,2]
[378039244,1754675436656,-400.0,0.00018937,2]
[378039245,1754675436665,-400.0,0.00018937,2]
[378039246,1754675436675,-400.0,0.00018937,2]
[378039247,1754675436684,-1191.04,0.00018937,2]
[378039248,1754675436693,-222.356723,0.00018937,2]
[378039249,1754675436702,-400.0,0.00018937,2]
[378039250,1754675436712,-400.0,0.00018937,2]
[378039251,1754675436721,-6030.49,0.00018937,2]
[378039252,1754675436730,-611.08,0.00018937,2]
[378039253,1754675436740,-523.85,0.00018937,2]
[378039254,1754675436749,-400.0,0.00018938,2]
[378039255,1754675436759,-999.3,0.00018938,2]
[378039256,1754675436768,-405.36,0.00018938,2]
[378039257,1754675436777,-415.74,0.00018938,2]
[378039258,1754675436787,-403.35,0.00018938,2]
[378039259,1754675436796,-400.0,0.00018938,2]
[378039260,1754675436806,-400.0,0.00018938,2]
[378039261,1754675436816,-400.0,0.00018938,2]
[378039262,1754675436826,-325.8,0.00018938,2]
[378039263,1754675436835,-400.0,0.00018938,2]
[378039264,1754675436846,-400.0,0.00018938,2]
[378039265,1754675436856,-400.0,0.00018938,2]
[378039266,1754675436866,-400.0,0.00018938,2]
[378039267,1754675436875,-173.9,0.00018938,2]
[378039268,1754675436885,-400.0,0.00018938,2]
[378039269,1754675436895,-440.21,0.00018938,2]
[378039270,1754675436905,-400.0,0.00018938,2]
[378039271,1754675436914,-590.54,0.00018938,2]
[378039272,1754675436923,-430.82,0.00018938,2]
[378039273,1754675436933,-400.0,0.00018938,2]
[378039274,1754675436942,-400.0,0.00018938,2]
[378039275,1754675436952,-400.0,0.00018938,2]
[378039276,1754675436962,-400.0,0.00018938,2]
[378039277,1754675436971,-400.0,0.00018938,2]
[378039278,1754675436980,-348.12,0.00018938,2]
[378039279,1754675436990,-228.69628557,0.00018938,2]
[378039280,1754675437000,-400.0,0.00018938,2]
[378039281,1754675437010,-400.0,0.00018938,2]
[378039282,1754675437019,-400.0,0.00018938,2]
[378039283,1754675437029,-1509.07,0.00018938,2]
[378039284,1754675437038,-400.0,0.00018938,2]
[378039285,1754675437049,-1285.4,0.00018938,2]
[378039286,1754675437058,-379.87,0.00018938,2]
[378039287,1754675437068,-400.0,0.00018938,2]
[378039288,1754675437077,-400.0,0.00018938,2]
[378039289,1754675437086,-474.48,0.00018938,2]
[378039290,1754675437095,-400.0,0.00018938,2]
[378039291,1754675437104,-400.0,0.00018938,2]
[378039292,1754675437114,-400.0,0.00018938,2]
[378039293,1754675437124,-165.87,0.00018938,2]
[378039294,1754675437133,-2782.77,0.00018938,2]
[378039295,1754675437142,-400.0,0.00018938,2]
[378039296,1754675437152,-400.0,0.00018938,2]
[378039297,1754675437162,-709.42,0.00018938,2]
[378039298,1754675437171,-400.0,0.00018988,2]
[378039299,1754675437181,-400.0,0.00018988,2]
[378039300,1754675437190,-400.0,0.00018988,2]
[378039301,1754675437200,-481.96,0.00018988,2]
[378039302,1754675437210,-400.0,0.00018988,2]
[378039303,1754675437220,-400.0,0.00018988,2]
[378039304,1754675437229,-400.0,0.00018988,2]
[378039306,1754675437238,-400.0,0.00018988,2]
[378039307,1754675437247,-400.0,0.00018988,2]
[378039309,1754675437266,-428.73,0.00018988,2]
[378039310,1754675437276,-400.0,0.00018988,2]
[378039311,1754675437287,-400.0,0.00018988,2]
[378039313,1754675437298,-333.82,0.00018988,2]
[378039315,1754675437308,-400.0,0.00018988,2]
[378039317,1754675437318,-400.0,0.00018988,2]
[378039318,1754675437328,-516.74,0.00018988,2]
[378039319,1754675437338,-492.02,0.00018988,2]
[378039321,1754675437348,-199.71,0.00018988,2]
[378039323,1754675437357,-400.0,0.00018988,2]
[378039324,1754675437367,-400.0,0.00018988,2]
[378039325,1754675437379,-452.57,0.00018988,2]
[378039326,1754675437388,-400.0,0.00018988,2]
[378039327,1754675437398,-453.03,0.00018988,2]
[378039328,1754675437407,-444.22,0.00018988,2]
[378039329,1754675437417,-335.53,0.00018988,2]
[378039330,1754675437427,-400.0,0.00018988,2]
[378039332,1754675437440,-400.0,0.00018988,2]
[378039334,1754675437450,-489.43,0.00018988,2]
[378039335,1754675437460,-400.0,0.00018988,2]
[378039336,1754675437471,-1200.74,0.00018988,2]
[378039337,1754675437481,-162.74,0.00018988,2]
[378039338,1754675437492,-521.21,0.00018988,2]
[378039339,1754675437504,-308.72,0.00018988,2]
[378039340,1754675437514,-400.0,0.00018988,2]
[378039341,1754675437523,-400.0,0.00018988,2]
[378039342,1754675437532,-250.93,0.00018988,2]
[378039343,1754675437542,-400.0,0.00018988,2]
[378039344,1754675437552,-360.97,0.00018988,2]
[378039345,1754675437562,-400.0,0.00018988,2]
[378039346,1754675437572,-1059.86,0.00018988,2]
[378039347,1754675437581,-400.0,0.00018988,2]
[378039348,1754675437591,-455.45,0.00018988,2]
[378039349,1754675437601,-400.0,0.00018988,2]
[378039350,1754675437611,-400.0,0.00018988,2]
[378039351,1754675437621,-400.0,0.00018988,2]
[378039352,1754675437631,-400.0,0.00018988,2]
[378039353,1754675437642,-1430.07,0.00018988,2]
[378039354,1754675437651,-400.0,0.00018988,2]
[378039355,1754675437661,-400.0,0.00018988,2]
[378039356,1754675437672,-400.0,0.00018988,2]
[378039357,1754675437684,-1392.24,0.00018988,2]
[378039358,1754675437694,-417.27,0.00018988,2]
[378039359,1754675437705,-631.86,0.00019,2]
[378039360,1754675437716,-1804.99,0.00019,2]
[378039361,1754675437726,-254.03,0.00019092,2]
[378039362,1754675437737,-668.060012,0.00019111,2]
[378039363,1754675437747,-400.0,0.0001921,2]
[378039364,1754675437757,-400.0,0.0001921,2]
[378039365,1754675437766,-400.0,0.0001921,2]
[378039366,1754675437776,-428.43,0.0001921,2]
[378039367,1754675437786,-400.0,0.0001921,2]
[378039368,1754675437795,-400.0,0.0001921,2]
[378039369,1754675437805,-400.0,0.0001921,2]
[378039370,1754675437814,-903.85,0.0001921,2]
[378039372,1754675437824,-271.81,0.00019211,2]
[378039373,1754675437834,-400.0,0.00019211,2]
[378039374,1754675437844,-808.39,0.00019211,2]
[378039375,1754675437853,-243.63,0.00019211,2]
[378039376,1754675437863,-400.0,0.00019211,2]
[378039377,1754675437874,-158.04,0.00019211,2]
[378039378,1754675437884,-514.97,0.00019211,2]
[378039379,1754675437894,-540.74,0.00019211,2]
[378039380,1754675437905,-400.0,0.00019211,2]
[378039381,1754675437916,-341.27,0.00019211,2]
[378039382,1754675437926,-400.0,0.00019211,2]
[378039384,1754675437935,-214.33,0.00019211,2]
[378039385,1754675437945,-400.0,0.00019211,2]
[378039386,1754675437954,-400.0,0.00019211,2]
[378039387,1754675437963,-752.1,0.00019211,2]
[378039388,1754675437973,-478.26,0.00019211,2]
[378039389,1754675437982,-400.0,0.00019211,2]
[378039390,1754675437992,-464.07,0.00019211,2]
[378039391,1754675438002,-525.82,0.00019211,2]
[378039392,1754675438011,-1333.48,0.00019211,2]